fUST/lending_fUST_20260129
["ID","MTS","AMOUNT","RATE_DAILY","PERIOD"]
[403919720,1769677843111,-2000.0,0.00014916,2]
[403919721,1769677843120,-500.0,0.00014972,2]
[403919722,1769677843130,-500.0,0.00014972,2]
[403919723,1769677843140,-440.0091,0.00015068,2]
[403919724,1769677843149,-500.0,0.00015109,2]
[403919725,1769677843158,-500.0,0.00015109,2]
[403919726,1769677843167,-3890.563676,0.0001513,2]
[403919727,1769677843176,-151.0,0.00015185,2]
[403919728,1769677843185,-152.0,0.00015186,2]
[403919729,1769677843195,-152.0,0.00015186,2]
[403919730,1769677843205,-151.0,0.00015186,2]
[403919732,1769677843214,-152.0,0.00015186,2]
[403919734,1769677843224,-151.0,0.00015186,2]
[403919735,1769677843233,-152.0,0.00015186,2]
[403919736,1769677843243,-151.0,0.00015186,2]
[403919737,1769677843252,-152.0,0.00015186,2]
[403919738,1769677843261,-240.0,0.00015186,2]
[403919739,1769677843270,-151.0,0.00015186,2]
[403919740,1769677843281,-151.0,0.00015186,2]
[403919741,1769677843292,-151.0,0.00015186,2]
[403919742,1769677843301,-151.0,0.00015186,2]
[403919743,1769677843311,-292.0,0.00015186,2]
[403919744,1769677843320,-500.0,0.00015212,2]
[403919745,1769677843331,-500.0,0.00015212,2]
[403919746,1769677843342,-7251.7748452,0.00015213,2]
[403919747,1769677843352,-500.0,0.00015246,2]
[403919748,1769677843362,-500.0,0.00015246,2]
[403919749,1769677843371,-587.0,0.00015281,2]
[403919750,1769677843380,-1200.0,0.00015316,2]
[403919751,1769677843390,-1275.62,0.00015342,2]
[403919752,1769677843401,-500.0,0.00015342,2]
[403919753,1769677843410,-2000.0,0.00015342,2]
[403919754,1769677843419,-849.71421088,0.00015342,2]
[403919756,1769677843428,-218.34852113,0.00015383,2]
[403919758,1769677843438,-500.0,0.00015383,2]
[403919759,1769677843447,-225.7484677,0.00015412,2]
[403919761,1769677843456,-1325.61,0.00015426,2]
[403919763,1769677843465,-500.0,0.00015464,2]
[403919765,1769677843474,-2500.0,0.00015464,2]
[403919767,1769677843483,-2500.0,0.00015464,2]
[403919769,1769677843492,-550.0,0.0001552,2]
[403919771,1769677843502,-452.1700777,0.00015548,2]
[403919773,1769677843511,-418.0,0.00015558,2]
[403919775,1769677843521,-418.0,0.00015558,2]
[403919777,1769677843530,-716.0,0.00015558,2]
[403919779,1769677843539,-180.914,0.00015558,2]
[403919781,1769677843548,-10000.0,0.00015559,2]
[403919783,1769677843558,-150.063,0.00015591,2]
[403919785,1769677843567,-2150.0,0.00015591,2]
[403919787,1769677843576,-1369.0,0.00015591,2]
[403919788,1769677843585,-160.0,0.00015625,2]
[403919790,1769677843594,-160.0,0.00015625,2]
[403919792,1769677843604,-1041.66666667,0.00015625,2]
[403919794,1769677843612,-1325.61,0.00015639,2]
[403919796,1769677843622,-5000.0,0.0001564,2]
[403919798,1769677843631,-864.0,0.00015673,2]
[403919800,1769677843640,-3890.563676,0.00015675,2]
[403919802,1769677843649,-250.0,0.00015712,2]
[403919804,1769677843658,-500.0,0.00015733,2]
[403919806,1769677843667,-5305.34803976,0.00015734,2]
[403919808,1769677843678,-116.989453,0.00015756,2]
[403919847,1769677844058,-319.0,0.00013766,2]
[403919849,1769677844067,-207.30212007,0.00015756,2]
[403919905,1769677845131,-210.47515741,0.00015756,2]
[403919906,1769677845145,-1104.3350325,0.00015756,2]
[403919907,1769677845155,-7220.77204611,0.00015756,2]
[403919908,1769677845164,-993.63223956,0.00015864,2]
[403919909,1769677845173,-2365.78800948,0.0001589,2]
[403919910,1769677845182,-6405.8444251,0.00015923,2]
[403919911,1769677845191,-526.0,0.00016007,2]
[403919912,1769677845200,-177.78264906,0.00016012,2]
[403919913,1769677845211,-1500.0,0.00016012,2]
[403919914,1769677845220,-777.79560267,0.00016066,2]
[403919915,1769677845228,-160.01887955,0.00016162,2]
[403919916,1769677845237,-500.0,0.00016173,2]
[403919917,1769677845247,-500.0,0.00016173,2]
[403919918,1769677845256,-526.0,0.00016205,2]
[403919919,1769677845265,-526.0,0.00016216,2]
[403919920,1769677845274,-526.0,0.00016288,2]
[403919921,1769677845283,-294.1070365,0.00016312,2]
[403919922,1769677845292,-526.0,0.00016421,2]
[403919923,1769677845302,-300.44675246,0.00016438,2]
[403919924,1769677845311,-295.07967713,0.00016438,2]
[403919925,1769677845319,-526.0,0.0001659,2]
[403919926,1769677845328,-325.6171727,0.000166,2]
[403919927,1769677845338,-526.0,0.00016706,2]
[403919928,1769677845346,-823.0,0.00016763,2]
[403919929,1769677845355,-225.7484677,0.0001677,2]
[403919930,1769677845364,-526.0,0.00016817,2]
[403919931,1769677845373,-526.0,0.00016902,2]
[403919932,1769677845382,-10995.165563,0.00016902,7]
[403919933,1769677845391,-526.0,0.00016967,2]
[403919934,1769677845402,-526.0,0.00016981,2]
[403919935,1769677845410,-526.0,0.00016993,2]
[403919936,1769677845421,-428.834615,0.00016993,7]
[403919937,1769677845430,-526.0,0.00017037,2]
[403919938,1769677845439,-452.1700777,0.00017051,2]
[403919939,1769677845451,-526.0,0.00017074,2]
[403919940,1769677845460,-526.0,0.00017101,2]
[403919941,1769677845469,-526.0,0.00017126,2]
[403919942,1769677845478,-1000.0,0.0001724,2]
[403919943,1769677845487,-43237.00532882,0.0001724,7]
[403919944,1769677845499,-623.38455915,0.0001724,7]
[403919945,1769677845509,-6272.37519345,0.0001724,7]
[403919946,1769677845591,-10715.0615411,0.0001724,7]
[403919947,1769677845603,-1470.02869129,0.0001724,7]
[403919952,1769677846585,-2643.18,0.0001724,7]
[403919953,1769677846597,-2666.94783362,0.0001724,7]
[403919954,1769677846608,-10609.8123531,0.0001724,7]
[403919955,1769677846745,-8695.74098176,0.0001724,7]
[403919969,1769678147744,5000.0,0.00012369,2]
[403919970,1769678170184,5000.0,0.00012369,2]
[403919971,1769678192323,0.01,0.00012369,2]
[403919972,1769678192345,4999.99,0.00012369,2]
[403919974,1769678214611,5000.0,0.00012369,2]
[403919975,1769678236900,0.02,0.00012369,2]
[403919976,1769678236925,4999.98,0.00012369,2]
[403919977,1769678259805,5000.0,0.00012369,2]
[403919978,1769678282881,0.03,0.00012369,2]
[403919979,1769678282904,4999.97,0.00012369,2]
[403919980,1769678288631,222.0,0.00030136,120]
[403919981,1769678300691,333.0,0.00030136,120]
[403919982,1769678305177,5000.0,0.00012369,2]
[403919983,1769678309886,155.0,0.00030136,120]
[403919984,1769678319206,222.0,0.00030136,120]
[403919985,1769678326852,444.0,0.00030136,120]
[403919986,1769678328402,0.04,0.00012369,2]
[403919987,1769678328424,4999.96,0.00012369,2]
[403919988,1769678351200,3218.79405079,0.00012369,2]
[403919989,1769678355318,470.0,0.00030136,120]
[403919990,1769678360570,-300.0,0.0001237,2]
[403919991,1769678398965,475.0,0.0002842,120]
[403919992,1769678399256,475.0,0.0002842,120]
[403919993,1769678399573,475.0,0.0002842,120]
[403919994,1769678399942,475.0,0.0002842,120]
[403919995,1769678400279,475.0,0.0002842,120]
[403919996,1769678400612,475.0,0.0002842,120]
[403919997,1769678400922,475.0,0.0002842,120]
[403919998,1769678401231,475.0,0.0002842,120]
[403919999,1769678401577,475.0,0.0002842,120]
[403920000,1769678401879,475.0,0.0002842,120]
[403920001,1769678402199,475.0,0.0002842,120]
[403920002,1769678402228,300.0,0.0001237,2]
[403920003,1769678402542,475.0,0.0002842,120]
[403920004,1769678402881,475.0,0.0002842,120]
[403920005,1769678403220,475.0,0.0002842,120]
[403920006,1769678403561,475.0,0.0002842,120]
[403920007,1769678403883,475.0,0.0002842,120]
[403920008,1769678404539,475.0,0.0002842,120]
[403920009,1769678404938,1200.0,0.0001237,2]
[403920010,1769678405517,475.0,0.0002842,120]
[403920011,1769678408055,1375.13,0.00034791,120]
[403920012,1769678408289,1375.13,0.00034791,120]
[403920013,1769678408562,1375.13,0.00034791,120]
[403920014,1769678408808,1375.13,0.00034791,120]
[403920015,1769678409046,1375.13,0.00034791,120]
[403920016,1769678409291,1375.13,0.00034791,120]
[403920017,1769678409545,1375.13,0.00034791,120]
[403920018,1769678409790,1375.13,0.00034791,120]
[403920019,1769678410042,1375.13,0.00034791,120]
[403920020,1769678410248,1375.13,0.00034791,120]
[403920021,1769678410821,1375.13,0.00034791,120]
[403920022,1769678411070,1375.13,0.00034791,120]
[403920023,1769678411318,1375.13,0.00034791,120]
[403920024,1769678411568,1375.13,0.00034791,120]
[403920025,1769678411798,1375.13,0.00034791,120]
[403920026,1769678412039,1375.13,0.00034791,120]
[403920027,1769678412278,1375.13,0.00034791,120]
[403920028,1769678412515,1375.13,0.00034791,120]
[403920029,1769678412750,1375.13,0.00034791,120]
[403920030,1769678413131,1375.13,0.00034791,120]
[403920031,1769678413231,1375.13,0.00034791,120]
[403920032,1769678413468,1375.13,0.00034791,120]
[403920033,1769678413706,1375.13,0.00034791,120]
[403920034,1769678413932,1375.15816564,0.00034791,120]
[403920035,1769678462492,300.0,0.0001237,2]
[403920036,1769678467362,2000.0,0.0002842,120]
[403920037,1769678468091,2000.0,0.0002842,120]
[403920038,1769678468415,2000.0,0.0002842,120]
[403920039,1769678468736,2000.0,0.0002842,120]
[403920040,1769678469072,2000.0,0.0002842,120]
[403920041,1769678469369,2000.0,0.0002842,120]
[403920042,1769678470185,1000.0,0.0002842,120]
[403920043,1769678470504,1000.0,0.0002842,120]
[403920044,1769678470799,1000.0,0.0002842,120]
[403920045,1769678472039,475.0,0.000284,120]
[403920046,1769678472346,475.0,0.000284,120]
[403920047,1769678472651,475.0,0.000284,120]
[403920048,1769678472986,475.0,0.000284,120]
[403920049,1769678473293,475.0,0.000284,120]
[403920050,1769678473612,475.0,0.000284,120]
[403920051,1769678474067,475.0,0.000284,120]
[403920052,1769678474492,475.0,0.000284,120]
[403920053,1769678474799,475.0,0.000284,120]
[403920054,1769678475123,475.0,0.000284,120]
[403920055,1769678475450,475.0,0.000284,120]
[403920056,1769678475759,475.0,0.000284,120]
[403920057,1769678476079,475.0,0.000284,120]
[403920058,1769678476373,475.0,0.000284,120]
[403920059,1769678476670,475.0,0.000284,120]
[403920060,1769678476980,475.0,0.000284,120]
[403920061,1769678477327,475.0,0.000284,120]
[403920062,1769678477587,475.0,0.000284,120]
[403920063,1769678477910,475.0,0.000284,120]
[403920064,1769678502410,167.381,0.00012348,2]
[403920065,1769678522723,300.0,0.0001237,2]
[403920066,1769678538936,475.0,0.00028353,120]
[403920067,1769678574210,1000.0,0.00012,2]
[403920068,1769678582390,300.0,0.0001237,2]
[403920069,1769678588799,5832.629,0.00011638,2]
[403920070,1769678588823,10000.01,0.00011638,2]
[403920071,1769678588847,8422.9786356,0.00011638,2]
[403920072,1769678622559,-2164.9351391,0.00011638,2]
[403920073,1769678634893,-10000.01,0.00012371,2]
[403920074,1769678640917,-4170.9522064,0.00012371,2]
[403920075,1769678640941,-1658.1055872,0.00012371,2]
[403920078,1769678647106,-243.82329965,0.00012371,2]
[403920079,1769678647137,-595.0,0.00012371,2]
[403920082,1769678858540,478.9396042,0.00011838,2]
[403920083,1769678864812,159.2,0.00028,120]
[403920084,1769678874721,2000.0,0.00034791,120]
[403920144,1769679032585,-300.0,0.00012499,2]
[403920145,1769679032595,-97.60461395,0.00012499,2]
[403920147,1769679032606,-716.39538605,0.00012499,2]
[403920148,1769679032618,-238.94683365,0.000125,2]
[403920149,1769679032628,-2677.96673836,0.000125,2]
[403920150,1769679032637,-176308.52008919,0.000125,2]
[403920169,1769679038672,-5824.79329647,0.000125,2]
[403920200,1769679039251,-149866.84229496,0.000125,2]
[403920203,1769679039263,-26226.51168397,0.000125,2]
[403920205,1769679039274,-1084.902,0.000125,2]
[403920207,1769679039285,-2651.33741601,0.000125,2]
[403920209,1769679039296,-657.70714393,0.000125,2]
[403920211,1769679039307,-2037379.38607547,0.000125,2]
[403920213,1769679039316,-282.06229141,0.00012599,2]
[403920215,1769679039324,-536.985,0.00012599,2]
[403920217,1769679039334,-308.33661517,0.00012599,2]
[403920219,1769679039343,-151.0,0.000126,2]
[403920221,1769679039352,-151.0,0.000126,2]
[403920223,1769679039361,-151.0,0.000126,2]
[403920225,1769679039371,-151.0,0.000126,2]
[403920227,1769679039380,-151.0,0.000126,2]
[403920229,1769679039389,-151.0,0.000126,2]
[403920231,1769679039398,-151.0,0.000126,2]
[403920234,1769679039409,-151.0,0.000126,2]
[403920236,1769679039418,-151.0,0.000126,2]
[403920238,1769679039427,-151.0,0.000126,2]
[403920240,1769679039436,-240.04,0.000126,2]
[403920242,1769679039445,-151.0,0.000126,2]
[403920244,1769679039455,-151.0,0.000126,2]
[403920246,1769679039464,-300.0,0.00012851,2]
[403920248,1769679039472,-300.0,0.00012851,2]
[403920250,1769679039481,-300.0,0.00012851,2]
[403920252,1769679039491,-300.0,0.00012851,2]
[403920254,1769679039500,-300.0,0.00012851,2]
[403920256,1769679039509,-300.0,0.00012851,2]
[403920258,1769679039518,-300.0,0.00012851,2]
[403920260,1769679039527,-300.0,0.00012851,2]
[403920262,1769679039536,-300.0,0.00012851,2]
[403920264,1769679039545,-300.0,0.00012851,2]
[403920266,1769679039555,-300.0,0.00012851,2]
[403920268,1769679039569,-300.0,0.00012851,2]
[403920270,1769679039577,-300.0,0.00012851,2]
[403920272,1769679039586,-300.0,0.00012851,2]
[403920274,1769679039595,-300.0,0.00012851,2]
[403920276,1769679039604,-600.0,0.00012851,2]
[403920278,1769679039614,-2677.96673835,0.00012946,2]
[403920280,1769679039635,-1000.0,0.00012999,2]
[403920282,1769679039651,-2737.81768824,0.00013,2]
[403920284,1769679039660,-26442.12101304,0.00013166,2]
[403920286,1769679039670,-383.45,0.000132,2]
[403920288,1769679039679,-536.76797533,0.00013273,2]
[403920290,1769679039689,-634.23164184,0.00013273,2]
[403920292,1769679039698,-167.9297864,0.00013273,2]
[403920294,1769679039707,-398.37330193,0.00013273,2]
[403920295,1769679039715,-500.0,0.00013273,2]
[403920296,1769679039725,-500.0,0.00013273,2]
[403920298,1769679039734,-500.0,0.00013273,2]
[403920300,1769679039744,-500.0,0.00013273,2]
[403920301,1769679039753,-500.0,0.00013273,2]
[403920302,1769679039762,-316.86005023,0.00013273,2]
[403920303,1769679039772,-501.0352963,0.00013273,2]
[403920304,1769679039784,-501.84700796,0.00013273,2]
[403920305,1769679039797,-501.31853517,0.00013273,2]
[403920306,1769679039807,-500.0,0.00013273,2]
[403920307,1769679039816,-500.0,0.00013273,2]
[403920308,1769679039825,-500.0,0.00013273,2]
[403920309,1769679039834,-500.0,0.00013273,2]
[403920310,1769679039843,-500.0,0.00013273,2]
[403920311,1769679039853,-162.28812704,0.00013273,2]
[403920312,1769679039871,-500.0,0.00013273,2]
[403920313,1769679039882,-500.0,0.00013273,2]
[403920314,1769679039892,-500.0,0.00013273,2]
[403920315,1769679039901,-500.0,0.00013273,2]
[403920316,1769679039911,-467.88085313,0.00013273,2]
[403920317,1769679039920,-500.0,0.00013273,2]
[403920318,1769679039930,-500.0,0.00013273,2]
[403920319,1769679039939,-151.83186163,0.00013273,2]
[403920320,1769679039949,-502.30333023,0.00013273,2]
[403920321,1769679039958,-549.00671497,0.00013273,2]
[403920322,1769679039969,-500.0,0.00013273,2]
[403920323,1769679039979,-500.0,0.00013273,2]
[403920324,1769679039989,-502.84198919,0.00013273,2]
[403920325,1769679039999,-500.0,0.00013273,2]
[403920326,1769679040009,-500.0,0.00013273,2]
[403920327,1769679040018,-502.121625,0.00013273,2]
[403920328,1769679040028,-430.04295978,0.00013273,2]
[403920329,1769679040038,-500.0,0.00013273,2]
[403920330,1769679040047,-500.92401321,0.00013273,2]
[403920331,1769679040057,-500.0,0.00013273,2]
[403920332,1769679040066,-500.0,0.00013273,2]
[403920333,1769679040076,-504.66671492,0.00013273,2]
[403920334,1769679040086,-161.6192891,0.00013273,2]
[403920335,1769679040096,-500.0,0.00013273,2]
[403920336,1769679040105,-500.0,0.00013273,2]
[403920337,1769679040115,-500.0,0.00013273,2]
[403920338,1769679040124,-2677.96673835,0.00013392,2]
[403920339,1769679040134,-500.0,0.00013547,2]
[403920340,1769679040143,-300.0,0.00013673,2]
[403920341,1769679040157,-500.0,0.00013698,2]
[403920342,1769679040167,-500.0,0.00013698,2]
[403920343,1769679040177,-500.0,0.00013698,2]
[403920344,1769679040187,-500.0,0.00013698,2]
[403920345,1769679040198,-500.0,0.00013698,2]
[403920346,1769679040207,-500.0,0.00013698,2]
[403920347,1769679040217,-500.0,0.00013698,2]
[403920348,1769679040227,-583.95253597,0.00013698,2]
[403920349,1769679040236,-500.0,0.00013698,2]
[403920350,1769679040245,-500.0,0.00013698,2]
[403920351,1769679040254,-500.0,0.00013698,2]
[403920352,1769679040264,-500.0,0.00013698,2]
[403920353,1769679040273,-500.0,0.00013698,2]
[403920354,1769679040282,-500.0,0.00013698,2]
[403920355,1769679040292,-500.0,0.00013698,2]
[403920356,1769679040302,-500.0,0.00013698,2]
[403920357,1769679040311,-500.0,0.00013698,2]
[403920358,1769679040321,-500.0,0.00013698,2]
[403920359,1769679040330,-500.0,0.00013698,2]
[403920360,1769679040339,-500.0,0.00013698,2]
[403920361,1769679040349,-500.0,0.00013698,2]
[403920362,1769679040359,-500.0,0.00013698,2]
[403920363,1769679040368,-500.0,0.00013698,2]
[403920364,1769679040378,-500.0,0.00013698,2]
[403920365,1769679040387,-500.0,0.00013698,2]
[403920366,1769679040397,-500.0,0.00013698,2]
[403920367,1769679040408,-533.70108919,0.00013698,2]
[403920368,1769679040417,-500.0,0.00013698,2]
[403920369,1769679040427,-500.0,0.00013698,2]
[403920370,1769679040436,-500.0,0.00013698,2]
[403920371,1769679040447,-500.0,0.00013698,2]
[403920372,1769679040456,-500.0,0.00013698,2]
[403920373,1769679040465,-500.0,0.00013698,2]
[403920374,1769679040475,-518.94139039,0.00013698,2]
[403920375,1769679040484,-500.0,0.00013698,2]
[403920376,1769679040493,-500.0,0.00013698,2]
[403920377,1769679040503,-500.0,0.00013698,2]
[403920378,1769679040513,-501.08252393,0.00013698,2]
[403920379,1769679040522,-500.0,0.00013698,2]
[403920380,1769679040532,-610.45891108,0.00013698,2]
[403920381,1769679040542,-607.57,0.00013698,2]
[403920382,1769679040551,-607.57,0.00013698,2]
[403920383,1769679040561,-607.57,0.00013698,2]
[403920384,1769679040571,-607.57,0.00013698,2]
[403920386,1769679040581,-607.57,0.00013698,2]
[403920387,1769679040591,-607.57,0.00013698,2]
[403920388,1769679040601,-607.57,0.00013698,2]
[403920389,1769679040611,-607.57,0.00013698,2]
[403920390,1769679040622,-607.57,0.00013698,2]
[403920391,1769679040632,-607.57,0.00013698,2]
[403920392,1769679040641,-607.57,0.00013698,2]
[403920393,1769679040650,-607.57,0.00013698,2]
[403920394,1769679040660,-607.57,0.00013698,2]
[403920395,1769679040669,-607.57,0.00013698,2]
[403920396,1769679040679,-607.57,0.00013698,2]
[403920397,1769679040689,-607.57,0.00013698,2]
[403920398,1769679040699,-607.57,0.00013698,2]
[403920399,1769679040708,-607.57,0.00013698,2]
[403920400,1769679040718,-607.57,0.00013698,2]
[403920401,1769679040727,-607.57,0.00013698,2]
[403920402,1769679040737,-607.57,0.00013698,2]
[403920403,1769679040746,-607.57,0.00013698,2]
[403920404,1769679040755,-607.57,0.00013698,2]
[403920405,1769679040766,-607.6,0.00013698,2]
[403920406,1769679040776,-525.32488563,0.00013698,2]
[403920407,1769679040786,-530.03606409,0.00013698,2]
[403920408,1769679040795,-500.0,0.00013698,2]
[403920409,1769679040805,-500.0,0.00013698,2]
[403920410,1769679040814,-500.0,0.00013698,2]
[403920411,1769679040823,-500.0,0.00013698,2]
[403920412,1769679040834,-500.0,0.00013698,2]
[403920413,1769679040845,-500.0,0.00013698,2]
[403920414,1769679040854,-500.0,0.00013698,2]
[403920415,1769679040864,-500.0,0.00013698,2]
[403920416,1769679040874,-500.0,0.00013698,2]
[403920417,1769679040884,-500.0,0.00013698,2]
[403920418,1769679040894,-500.0,0.00013698,2]
[403920419,1769679040904,-500.0,0.00013698,2]
[403920420,1769679040914,-500.0,0.00013698,2]
[403920421,1769679040923,-500.0,0.00013698,2]
[403920422,1769679040934,-500.0,0.00013698,2]
[403920423,1769679040944,-500.0,0.00013698,2]
[403920424,1769679040953,-500.0,0.00013698,2]
[403920425,1769679040963,-500.0,0.00013698,2]
[403920426,1769679040973,-500.0,0.00013698,2]
[403920427,1769679040982,-500.0,0.00013698,2]
[403920428,1769679040991,-500.0,0.00013698,2]
[403920429,1769679041172,-500.0,0.00013698,2]
[403920430,1769679041183,-500.0,0.00013698,2]
[403920431,1769679041194,-500.0,0.00013698,2]
[403920432,1769679041204,-500.0,0.00013698,2]
[403920433,1769679041214,-500.0,0.00013698,2]
[403920434,1769679041225,-500.0,0.00013698,2]
[403920435,1769679041236,-500.0,0.00013698,2]
[403920436,1769679041246,-500.0,0.00013698,2]
[403920437,1769679041256,-500.0,0.00013698,2]
[403920438,1769679041265,-500.0,0.00013698,2]
[403920439,1769679041275,-544.76043412,0.00013698,2]
[403920440,1769679041285,-500.0,0.00013699,2]
[403920441,1769679041295,-500.0,0.00013699,2]
[403920442,1769679041303,-500.0,0.00013699,2]
[403920443,1769679041312,-500.0,0.00013699,2]
[403920444,1769679041325,-314.792435,0.00013699,2]
[403920445,1769679041334,-507.77467851,0.00013699,2]
[403920446,1769679041343,-501.76365168,0.00013699,2]
[403920447,1769679041353,-500.75803963,0.00013699,2]
[403920448,1769679041363,-500.0,0.00013699,2]
[403920449,1769679041372,-500.0,0.00013699,2]
[403920450,1769679041382,-291.60725507,0.00013699,2]
[403920451,1769679041391,-500.0,0.00013699,2]
[403920452,1769679041400,-500.0,0.00013699,2]
[403920453,1769679041409,-454.63175359,0.00013699,2]
[403920454,1769679041418,-500.0,0.00013699,2]
[403920455,1769679041428,-500.0,0.00013699,2]
[403920456,1769679041437,-501.60095283,0.00013699,2]
[403920457,1769679041447,-500.84679195,0.00013699,2]
[403920458,1769679041457,-500.0,0.00013699,2]
[403920459,1769679041466,-500.0,0.00013699,2]
[403920460,1769679041475,-500.0,0.00013699,2]
[403920461,1769679041485,-500.0,0.00013699,2]
[403920462,1769679041494,-500.0,0.00013699,2]
[403920463,1769679041504,-500.0,0.00013699,2]
[403920464,1769679041513,-502.71899874,0.00013699,2]
[403920465,1769679041522,-500.0,0.00013699,2]
[403920466,1769679041531,-500.0,0.00013699,2]
[403920467,1769679041540,-500.0,0.00013699,2]
[403920468,1769679041549,-249.42507094,0.00013699,2]
[403920469,1769679041558,-420.0,0.00013714,2]
[403920470,1769679041568,-500.0,0.00013821,2]
[403920471,1769679041577,-175.05414771,0.00013821,2]
[403920472,1769679041587,-501.40141245,0.00013821,2]
[403920473,1769679041596,-1000.0,0.00013821,2]
[403920474,1769679041606,-1000.0,0.00013821,2]
[403920475,1769679041616,-1000.0,0.00013821,2]
[403920476,1769679041625,-1000.0,0.00013821,2]
[403920477,1769679041634,-355.419529,0.00013821,2]
[403920478,1769679041643,-897.62397769,0.00013821,2]
[403920479,1769679041655,-1017.09664357,0.00013821,2]
[403920480,1769679041665,-1000.0,0.00013821,2]
[403920481,1769679041674,-196.99444629,0.00013821,2]
[403920482,1769679041683,-1000.0,0.00013821,2]
[403920483,1769679041693,-1000.0,0.00013821,2]
[403920484,1769679041702,-506.38016949,0.00013821,2]
[403920485,1769679041711,-1000.0,0.00013821,2]
[403920486,1769679041721,-1000.0,0.00013821,2]
[403920487,1769679041730,-1000.0,0.00013821,2]
[403920488,1769679041741,-1007.51247725,0.00013821,2]
[403920489,1769679041750,-1000.0,0.00013821,2]
[403920490,1769679041759,-1000.0,0.00013821,2]
[403920491,1769679041768,-1107.3138929,0.00013821,2]
[403920492,1769679041778,-1000.0,0.00013821,2]
[403920493,1769679041788,-1002.6154559,0.00013821,2]
[403920494,1769679041797,-2677.96673835,0.00013838,2]
[403920495,1769679041807,-1000.0,0.00013973,2]
[403920496,1769679041816,-150.75390644,0.00013973,2]
[403920497,1769679041825,-151.04060416,0.00013973,2]
[403920498,1769679041835,-500.0,0.00013973,2]
[403920499,1769679041844,-500.0,0.00013973,2]
[403920500,1769679041854,-150.4025982,0.00013973,2]
[403920501,1769679041863,-1000.0,0.00014,2]
[403920502,1769679041873,-500.0,0.00014095,2]
[403920503,1769679041882,-500.0,0.0001411,2]
[403920504,1769679041891,-500.0,0.0001411,2]
[403920505,1769679041901,-720.0,0.00014136,2]
[403920506,1769679041910,-600.0,0.00014221,2]
[403920507,1769679041919,-1000.0,0.00014247,2]
[403920508,1769679041929,-592.85387235,0.00014247,2]
[403920509,1769679041938,-1000.0,0.00014247,2]
[403920510,1769679041947,-160.9968606,0.00014247,2]
[403920511,1769679041957,-1000.0,0.00014247,2]
[403920512,1769679041966,-1000.0,0.00014247,2]
[403920513,1769679041975,-1000.0,0.00014247,2]
[403920514,1769679041985,-504.15902707,0.00014247,2]
[403920515,1769679041995,-500.0,0.00014247,2]
[403920516,1769679042004,-1000.0,0.00014247,2]
[403920517,1769679042013,-1000.0,0.00014247,2]
[403920518,1769679042023,-1102.21614882,0.00014247,2]
[403920519,1769679042032,-1000.0,0.00014247,2]
[403920520,1769679042041,-1000.0,0.00014247,2]
[403920521,1769679042050,-1134.23032778,0.00014247,2]
[403920522,1769679042060,-500.0,0.00014247,2]